fUST/lending_fUST_20260107
["ID","MTS","AMOUNT","RATE_DAILY","PERIOD"]
[400578150,1767731438449,-300.0,0.00011898,2]
[400578151,1767731438459,-300.0,0.00011898,2]
[400578152,1767731438468,-300.0,0.00011898,2]
[400578153,1767731438478,-300.0,0.00011898,2]
[400578154,1767731438487,-300.0,0.00011898,2]
[400578155,1767731438496,-300.0,0.00011898,2]
[400578156,1767731438506,-300.0,0.00011898,2]
[400578157,1767731438516,-300.0,0.00011898,2]
[400578158,1767731438532,-300.0,0.00011898,2]
[400578159,1767731438541,-300.0,0.00011898,2]
[400578160,1767731438550,-300.0,0.00011898,2]
[400578161,1767731438561,-300.0,0.00011898,2]
[400578162,1767731438570,-300.0,0.00011898,2]
[400578164,1767731438579,-300.0,0.00011898,2]
[400578166,1767731438590,-3327.7557042,0.0001199,2]
[400578168,1767731438602,-720.0,0.00012213,2]
[400578170,1767731438611,-956.92326173,0.00012328,2]
[400578172,1767731438621,-588.57479541,0.00012328,2]
[400578174,1767731438630,-8549.4580978,0.00012597,2]
[400578176,1767731438639,-1907.6419545,0.00012916,2]
[400578178,1767731438648,-5673.87291122,0.00013,7]
[400578180,1767731438658,-151.0,0.000131,2]
[400578181,1767731438668,-791.82002348,0.00013108,2]
[400578188,1767731438815,-2269.3487521,0.0001317,2]
[400578191,1767731438835,-231.32268214,0.00013201,2]
[400578193,1767731438846,-3327.7557042,0.00013239,2]
[400578195,1767731438856,-500.0,0.00013273,2]
[400578197,1767731438866,-500.0,0.00013273,2]
[400578199,1767731438876,-497.04994014,0.00013273,2]
[400578201,1767731438885,-500.0,0.00013273,2]
[400578203,1767731438896,-500.0,0.00013273,2]
[400578205,1767731438906,-151.0,0.000134,2]
[400578207,1767731438918,-864.0,0.00013434,2]
[400578209,1767731438928,-506.3601504,0.00013505,2]
[400578211,1767731438937,-151.0,0.000136,2]
[400578213,1767731438947,-2061.22081261,0.00013684,2]
[400578215,1767731438958,-731.33,0.00013698,2]
[400578217,1767731438970,-731.33,0.00013698,2]
[400578219,1767731438980,-731.33,0.00013698,2]
[400578221,1767731438990,-731.33,0.00013698,2]
[400578223,1767731439000,-731.33,0.00013698,2]
[400578225,1767731439009,-731.33,0.00013698,2]
[400578227,1767731439019,-731.33,0.00013698,2]
[400578229,1767731439028,-731.33,0.00013698,2]
[400578231,1767731439038,-731.33,0.00013698,2]
[400578233,1767731439048,-731.33,0.00013698,2]
[400578235,1767731439058,-731.33,0.00013698,2]
[400578237,1767731439067,-731.33,0.00013698,2]
[400578239,1767731439077,-731.33,0.00013698,2]
[400578241,1767731439086,-731.33,0.00013698,2]
[400578243,1767731439095,-731.33,0.00013698,2]
[400578245,1767731439104,-731.33,0.00013698,2]
[400578247,1767731439114,-731.33,0.00013698,2]
[400578250,1767731439124,-731.33,0.00013698,2]
[400578252,1767731439133,-731.33,0.00013698,2]
[400578254,1767731439142,-731.33,0.00013698,2]
[400578256,1767731439151,-731.33,0.00013698,2]
[400578257,1767731439160,-731.33,0.00013698,2]
[400578259,1767731439170,-731.33,0.00013698,2]
[400578261,1767731439179,-731.43251885,0.00013698,2]
[400578263,1767731439189,-885.4942762,0.00013699,2]
[400578266,1767731439198,-500.0,0.00013699,2]
[400578267,1767731439207,-500.0,0.00013699,2]
[400578270,1767731439216,-540.98419624,0.00013699,2]
[400578271,1767731439225,-500.0,0.00013699,2]
[400578274,1767731439234,-500.0,0.00013699,2]
[400578276,1767731439243,-500.0,0.00013699,2]
[400578278,1767731439251,-500.0,0.00013699,2]
[400578280,1767731439260,-254.27500282,0.00013699,2]
[400578282,1767731439271,-1377.21,0.00013721,2]
[400578284,1767731439280,-382.63199019,0.00013821,2]
[400578286,1767731439289,-1000.0,0.00013821,2]
[400578288,1767731439298,-1000.0,0.00013821,2]
[400578290,1767731439307,-10000.0,0.0001386,2]
[400578292,1767731439316,-151.0,0.000139,2]
[400578294,1767731439326,-151.0,0.000141,2]
[400578296,1767731439335,-2354.29918166,0.00014105,2]
[400578298,1767731439344,-264.66840669,0.00014175,2]
[400578300,1767731439353,-190.54140398,0.00014175,2]
[400578302,1767731439362,-669.1909469,0.00014247,2]
[400578304,1767731439371,-500.0,0.00014247,2]
[400578306,1767731439381,-1000.0,0.00014247,2]
[400578308,1767731439390,-879.35041087,0.00014247,2]
[400578310,1767731439400,-1000.0,0.00014247,2]
[400578312,1767731439409,-1000.0,0.00014247,2]
[400578314,1767731439418,-190505.9787602,0.00014365,2]
[400578316,1767731439427,-1500.0,0.00014368,2]
[400578318,1767731439436,-1500.0,0.00014368,2]
[400578320,1767731439446,-791.82002348,0.00014427,2]
[400578322,1767731439456,-1000.0,0.00014778,2]
[400578323,1767731439467,-1500.0,0.00014795,2]
[400578325,1767731439477,-1018.27095848,0.00014795,2]
[400578327,1767731439486,-854.09851371,0.00014795,2]
[400578329,1767731439495,-360.65931452,0.00014823,2]
[400578331,1767731439504,-450.73458576,0.00014916,2]
[400578333,1767731439514,-2000.0,0.00014916,2]
[400578335,1767731439525,-1000.0,0.00015,2]
[400578337,1767731439534,-2412.43259168,0.00015,2]
[400578339,1767731439544,-4997.5,0.00015,2]
[400578341,1767731439553,-531.35451386,0.00015,3]
[400578343,1767731439562,-10987.96789992,0.0001501,2]
[400578345,1767731439571,-273.72368144,0.0001515,20]
[400578347,1767731439581,-266.60919298,0.00015201,2]
[400578349,1767731439591,-1000.0,0.00015342,2]
[400578351,1767731439601,-2500.0,0.00015464,2]
[400578353,1767731439610,-791.82002348,0.00015747,2]
[400578355,1767731439619,-4637.74682837,0.0001584,2]
[400578357,1767731439628,-1500.0,0.00016012,2]
[400578359,1767731439637,-1000.0,0.00016256,2]
[400578361,1767731439646,-244.0,0.00016256,2]
[400578363,1767731439655,-200.0,0.00016473,2]
[400578365,1767731439666,-61162.51963186,0.00017,2]
[400578367,1767731439675,-163349.36340269,0.00017,7]
[400578369,1767731439684,-791.82002348,0.00017066,2]
[400578371,1767731439693,-301.89570381,0.00017201,2]
[400578373,1767731439703,-5297.17315873,0.00017209,2]
[400578375,1767731439712,-1000.0,0.00017881,2]
[400578377,1767731439721,-492.0,0.00017881,2]
[400578378,1767731439730,-9931.15793161,0.000179,2]
[400578380,1767731439739,-8244.88325043,0.00017996,2]
[400578382,1767731439749,-69746.40730063,0.00018,5]
[400578384,1767731439758,-3499.999999,0.00018,2]
[400578386,1767731439767,-3827.69304694,0.00018633,2]
[400578388,1767731439776,-170.0,0.00018849,3]
[400578390,1767731439785,-42279.56725066,0.000189,2]
[400578392,1767731439794,-10000.0,0.00019,2]
[400578394,1767731439803,-337.18221465,0.00019201,2]
[400578396,1767731439812,-497.28977626,0.00019205,5]
[400578398,1767731439822,-745.83451928,0.00019225,10]
[400578400,1767731439831,-11232.65,0.000193,2]
[400578402,1767731439840,-2261.68,0.000193,2]
[400578404,1767731439849,-227.8,0.000193,2]
[400578406,1767731439859,-192.03,0.000193,2]
[400578408,1767731439868,-160.0,0.00019424,2]
[400578410,1767731439878,-160.0,0.00019424,2]
[400578412,1767731439887,-2030.296672,0.00019424,2]
[400578414,1767731439896,-152.35382253,0.00019424,2]
[400578416,1767731439906,-250.0,0.00019424,2]
[400578418,1767731439915,-250.0,0.00019424,2]
[400578420,1767731439924,-151.0,0.00019424,2]
[400578422,1767731439934,-255.24985543,0.00019424,2]
[400578424,1767731439943,-250.0,0.00019424,2]
[400578426,1767731439952,-151.0,0.00019424,2]
[400578428,1767731439962,-250.0,0.00019424,2]
[400578430,1767731439971,-196.9088468,0.00019424,2]
[400578433,1767731439981,-250.0,0.00019424,2]
[400578434,1767731439990,-500.0,0.00019424,2]
[400578437,1767731439999,-250.0,0.00019424,2]
[400578438,1767731440009,-500.0,0.00019424,2]
[400578441,1767731440018,-250.0,0.00019424,2]
[400578443,1767731440027,-500.0,0.00019424,2]
[400578444,1767731440036,-250.0,0.00019424,2]
[400578446,1767731440046,-500.0,0.00019424,2]
[400578447,1767731440055,-250.0,0.00019424,2]
[400578448,1767731440064,-500.0,0.00019424,2]
[400578449,1767731440073,-250.0,0.00019424,2]
[400578450,1767731440082,-572.67465822,0.00019424,2]
[400578451,1767731440092,-250.0,0.00019424,2]
[400578452,1767731440102,-250.0,0.00019424,2]
[400578453,1767731440111,-514.84070869,0.00019424,2]
[400578454,1767731440120,-346.46908048,0.00019424,2]
[400578455,1767731440130,-500.0,0.00019424,2]
[400578456,1767731440139,-500.0,0.00019424,2]
[400578457,1767731440148,-500.0,0.00019424,2]
[400578458,1767731440158,-500.0,0.00019424,2]
[400578459,1767731440167,-500.0,0.00019424,2]
[400578461,1767731440176,-250.0,0.00019424,2]
[400578462,1767731440186,-500.0,0.00019424,2]
[400578464,1767731440195,-250.0,0.00019424,2]
[400578466,1767731440204,-500.0,0.00019424,2]
[400578468,1767731440213,-250.0,0.00019424,2]
[400578470,1767731440222,-500.0,0.00019424,2]
[400578472,1767731440232,-250.0,0.00019424,2]
[400578474,1767731440242,-500.0,0.00019424,2]
[400578476,1767731440251,-250.0,0.00019424,2]
[400578478,1767731440260,-500.0,0.00019424,2]
[400578480,1767731440270,-500.0,0.00019424,2]
[400578482,1767731440279,-151.0,0.00019424,2]
[400578484,1767731440288,-500.0,0.00019424,2]
[400578486,1767731440297,-500.0,0.00019424,2]
[400578488,1767731440307,-500.0,0.00019424,2]
[400578490,1767731440316,-265.97969829,0.00019424,2]
[400578492,1767731440326,-2105.41764886,0.00019479,2]
[400578494,1767731440335,-2183.31810187,0.00019534,2]
[400578496,1767731440344,-2264.10087164,0.00019589,2]
[400578498,1767731440353,-1683.0249248,0.00019644,2]
[400578500,1767731440362,-1000.0,0.00019669,2]
[400578502,1767731440372,-791.0,0.00019669,2]
[400578504,1767731440381,-832.73351808,0.00019812,2]
[400578506,1767731440390,-3330.93407233,0.00019812,2]
[400578508,1767731440399,-533.88981491,0.00019972,2]
[400578511,1767731440409,-500.56240568,0.0002,2]
[400578514,1767731440418,-1815.44742593,0.0002,2]
[400578516,1767731440427,-300.00038009,0.0002,7]
[400578518,1767731440436,-181.04000005,0.0002,2]
[400578521,1767731440446,-9931.15793158,0.00020052,2]
[400578523,1767731440455,-315.00939042,0.00020229,2]
[400578525,1767731440465,-553.64373807,0.0002052,2]
[400578527,1767731440475,-2000.0,0.00020676,7]
[400578530,1767731440484,-158.88021747,0.00020855,2]
[400578532,1767731440494,-634.885349,0.00020855,2]
[400578534,1767731440503,-197.00031003,0.00020868,2]
[400578536,1767731440512,-3000.0,0.00021,2]
[400578538,1767731440527,-277.05120127,0.00021,2]
[400578540,1767731440536,-1081.20658707,0.00021,10]
[400578542,1767731440546,-27032.71808146,0.00021,2]
[400578543,1767731440555,-3000.0,0.0002101,2]
[400578545,1767731440564,-3000.0,0.0002102,2]
[400578547,1767731440574,-3000.0,0.0002103,2]
[400578550,1767731440583,-3000.0,0.0002104,2]
[400578552,1767731440595,-3040.097494,0.0002105,2]
[400578554,1767731440604,-574.12855637,0.00021068,2]
[400578555,1767731440613,-372.46872548,0.00021201,2]
[400578558,1767731440623,-280.80394127,0.00021294,2]
[400578560,1767731440633,-595.37131296,0.00021616,2]
[400578562,1767731440643,-1000.0,0.00021636,10]
[400578564,1767731440653,-1000.0,0.00021636,10]
[400578566,1767731440662,-2000.0,0.00021642,7]
[400578568,1767731440672,-1120.1829069,0.00021754,2]
[400578570,1767731440681,-192.03,0.000218,2]
[400578572,1767731440691,-227.8,0.000218,2]
[400578574,1767731440701,-568.06899724,0.0002196,10]
[400578576,1767731440711,-84987.34441726,0.00022,2]
[400578578,1767731440720,-171.83181526,0.00022,10]
[400578580,1767731440728,-19696.50350082,0.00022,7]
[400578582,1767731440737,-2440.08,0.00022,7]
[400578584,1767731440746,-1067.34725359,0.0002216,15]
[400578586,1767731440755,-617.40005154,0.00022164,2]
[400578588,1767731440764,-373.0,0.000222,2]
[400578590,1767731440773,-2261.68,0.000222,14]
[400578592,1767731440782,-9931.15793158,0.00022205,2]
[400578594,1767731440791,-11232.65,0.000225,2]
[400578596,1767731440801,-2000.0,0.00022608,7]
[400578598,1767731440811,-640.24385345,0.00022712,2]
[400578600,1767731440819,-1041.66666667,0.00023154,2]
[400578602,1767731440829,-407.75523632,0.00023201,2]
[400578604,1767731440838,-663.93287602,0.0002326,2]
[400578606,1767731440847,-168.0,0.00023538,2]
[400578608,1767731440856,-168.0,0.00023562,2]
[400578610,1767731440865,-2000.0,0.00023575,7]
[400578612,1767731440874,-1244.61790753,0.00023628,18]
[400578614,1767731440884,-1000.0,0.000238,10]
[400578616,1767731440893,-1000.0,0.000238,10]
[400578618,1767731440902,-579.0,0.000238,10]
[400578620,1767731440912,-688.49839244,0.00023808,2]
[400578622,1767731440921,-168.0,0.00023813,2]
[400578624,1767731440930,-13633.32,0.000239,3]
[400578626,1767731440939,-43901.28444321,0.00024,2]
[400578628,1767731440947,-1734.56052203,0.00024,2]
[400578630,1767731440957,-465.40086912,0.00024,2]
[400578631,1767731440966,-618.86,0.00024,14]
[400578633,1767731440975,-995.3526357,0.0002412,2]
[400578635,1767731440983,-168.0,0.00024133,2]
[400578637,1767731440992,-511358.26965662,0.00024142,2]
[400578639,1767731441002,-151.0,0.00024142,2]
[400578641,1767731441011,-286.600994,0.00024142,2]
[400578643,1767731441021,-191.004961,0.00024142,2]
[400578645,1767731441030,-151.0,0.00024142,2]
[400578647,1767731441039,-151.0,0.00024142,2]
[400578649,1767731441048,-151.0,0.00024142,2]
[400578651,1767731441058,-151.0,0.00024142,2]
[400578653,1767731441067,-250.88224,0.00024142,2]
[400578655,1767731441076,-250.88224,0.00024142,2]
[400578657,1767731441085,-250.88224,0.00024142,2]
[400578659,1767731441094,-250.88224,0.00024142,2]
[400578661,1767731441103,-151.0,0.00024142,2]
[400578663,1767731441113,-151.0,0.00024142,2]
[400578665,1767731441122,-151.0,0.00024142,2]
[400578667,1767731441132,-151.0,0.00024142,2]
[400578669,1767731441141,-162.040453,0.00024142,2]
[400578671,1767731441150,-151.0,0.00024142,2]
[400578673,1767731441159,-151.0,0.00024142,2]
[400578675,1767731441168,-151.000002,0.00024142,2]
[400578677,1767731441177,-264.296067,0.00024142,2]
[400578679,1767731441186,-151.0,0.00024142,2]
[400578681,1767731441195,-151.0,0.00024142,2]
[400578683,1767731441204,-151.0,0.00024142,2]
[400578685,1767731441213,-151.0,0.00024142,2]
[400578687,1767731441222,-151.0,0.00024142,2]
[400578689,1767731441231,-151.0,0.00024142,2]
[400578691,1767731441240,-151.0,0.00024142,2]
[400578693,1767731441249,-151.0,0.00024142,2]
[400578695,1767731441258,-224.055312,0.00024142,2]
[400578697,1767731441267,-168.0,0.00024194,2]
[400578699,1767731441276,-227.8,0.000242,7]
[400578701,1767731441285,-192.03,0.000242,7]
[400578703,1767731441294,-168.0,0.00024275,2]
[400578705,1767731441303,-713.97283296,0.00024356,2]
[400578707,1767731441312,-9931.15793158,0.00024357,2]
[400578709,1767731441321,-168.0,0.00024423,2]
[400578711,1767731441330,-168.0,0.00024437,2]
[400578713,1767731441339,-168.0,0.00024461,2]
[400578715,1767731441348,-168.0,0.00024462,2]
[400578717,1767731441357,-2440.08,0.000245,7]
[400578719,1767731441366,-2000.0,0.00024541,7]
[400578721,1767731441375,-168.0,0.00024592,2]
[400578723,1767731441384,-13633.27,0.000246,3]
[400578725,1767731441394,-156710.90453851,0.0002465,2]
[400578727,1767731441403,-513.75227377,0.0002465,2]
[400578729,1767731441414,-380.0,0.00024658,2]
[400578731,1767731441423,-168.0,0.00024716,2]
[400578732,1767731441432,-168.0,0.00024736,2]
[400578734,1767731441441,-16820.33315327,0.00024774,2]
[400578736,1767731441450,-2261.68,0.000248,14]
[400578738,1767731441459,-168.0,0.00024882,2]
[400578740,1767731441472,-212.54773642,0.00024899,2]
[400578742,1767731441482,-622366.483319,0.000249,2]
[400578744,1767731441491,-263.925561,0.000249,7]
[400578746,1767731441500,-151.0,0.000249,7]
[400578749,1767731441510,-151.0,0.000249,7]
[400578750,1767731441519,-151.0,0.000249,7]
[400578753,1767731441532,-221.765393,0.000249,7]
[400578755,1767731441541,-250.88224,0.000249,7]
[400578756,1767731441550,-250.88224,0.000249,7]
[400578758,1767731441559,-250.88224,0.000249,7]
[400578761,1767731441571,-250.88224,0.000249,7]
[400578763,1767731441580,-151.0,0.000249,7]
[400578765,1767731441589,-151.0,0.000249,7]
[400578767,1767731441600,-151.0,0.000249,7]
[400578769,1767731441610,-151.0,0.000249,7]
[400578771,1767731441620,-151.0,0.000249,7]
[400578773,1767731441629,-151.0,0.000249,7]
[400578775,1767731441638,-151.0,0.000249,7]
[400578776,1767731441647,-151.0,0.000249,7]
[400578778,1767731441656,-151.0,0.000249,7]
[400578780,1767731441666,-151.0,0.000249,7]
[400578782,1767731441676,-151.0,0.000249,7]
[400578785,1767731441686,-151.0,0.000249,7]
[400578787,1767731441695,-151.0,0.000249,7]
[400578788,1767731441704,-151.0,0.000249,7]
[400578791,1767731441713,-740.38982778,0.00024904,2]
[400578792,1767731441723,-111528.65958939,0.00025,15]
[400578795,1767731441732,-1084.88588646,0.00025,2]
[400578796,1767731441741,-11299.51643052,0.00025,2]
[400578798,1767731441751,-2673.15322453,0.00025,2]
[400578800,1767731441760,-27267.5635244,0.00025,2]
[400578802,1767731441770,-10364.0,0.00025,2]
[400578804,1767731441779,-11232.65,0.00025,2]
[400578806,1767731441788,-500.0,0.00025,2]
[400578808,1767731441797,-300.0,0.00025,30]
[400578822,1767731441914,-1188.6506679,0.00025,2]
[400578824,1767731441923,-758.94232624,0.00025,2]
[400578826,1767731441932,-1432.03176126,0.00025095,21]
[400578828,1767731441942,-579.7994531,0.000252,5]
[400578829,1767731441951,-443.04174715,0.00025201,2]
[400578832,1767731441960,-168.0,0.00025444,2]
[400578834,1767731441969,-767.7842514,0.00025452,2]
[400578836,1767731441978,-900.0,0.00025469,3]
[400578838,1767731441987,-1000.0,0.000255,2]
[400578840,1767731441996,-2000.0,0.00025507,7]
[400578842,1767731442005,-168.0,0.000256,2]
[400578844,1767731442014,-168.0,0.00025658,2]
[400578845,1767731442024,-168.0,0.00025797,2]
[400578848,1767731442033,-39765.87356579,0.00026,10]
[400578850,1767731442043,-529.55716524,0.00026,2]
[400578851,1767731442052,-19900.0,0.00026,2]
[400578853,1767731442061,-161.0,0.00026,5]
[400578856,1767731442070,-1020.73276343,0.00026,2]
[400578858,1767731442079,-2440.08,0.00026,7]
[400578859,1767731442088,-227.8,0.00026,7]
[400578862,1767731442099,-192.03,0.00026,7]
[400578864,1767731442108,-796.19226871,0.00026,2]
[400578865,1767731442117,-194.54818009,0.0002616,2]
[400578868,1767731442127,-1000.0,0.0002618,30]
[400578869,1767731442136,-1000.0,0.0002618,30]
[400578872,1767731442148,-1000.0,0.0002618,30]
[400578874,1767731442157,-2000.0,0.00026473,7]
[400578876,1767731442167,-9931.15793158,0.00026509,2]
[400578878,1767731442175,-200.0,0.0002654,14]
[400578880,1767731442184,-825.65138265,0.00026548,2]
[400578882,1767731442194,-1629.06688033,0.00026562,24]
[400578884,1767731442203,-13633.27,0.000267,3]
[400578886,1767731442212,-53813.93792126,0.00026778,14]
[400578888,1767731442221,-2261.68,0.000269,14]
[400578890,1767731442230,-373.0,0.00027,2]
[400578891,1767731442239,-166.0,0.00027,7]
[400578894,1767731442248,-600.0,0.00027,14]
[400578895,1767731442258,-503.72461752,0.00027,2]
[400578898,1767731442269,-302781.61424461,0.00027,7]
[400578899,1767731442279,-1019.0,0.00027,2]
[400578902,1767731442288,-507.0,0.00027,7]
[400578903,1767731442299,-157.0,0.00027068,23]
[400578906,1767731442309,-478.32825799,0.00027201,2]
[400578908,1767731442318,-1749.78,0.00027397,2]
[400578909,1767731442329,-223.81332617,0.00027397,2]
[400578911,1767731442341,-156.66932831,0.00027397,2]
[400578914,1767731442362,-514.72943371,0.00027397,5]
[400578916,1767731442373,-2000.0,0.00027439,7]
[400578918,1767731442383,-45930.20768051,0.000275,2]
[400578920,1767731442392,-151.0,0.000275,7]
[400578922,1767731442406,-151.0,0.000275,7]
[400578924,1767731442426,-151.0,0.000275,7]
[400578926,1767731442442,-250.88224,0.000275,7]
[400578928,1767731442451,-250.88224,0.000275,7]
[400578930,1767731442461,-250.88224,0.000275,7]
[400578932,1767731442470,-250.88224,0.000275,7]
[400578934,1767731442479,-151.0,0.000275,7]
[400578936,1767731442489,-151.0,0.000275,7]
[400578938,1767731442498,-151.0,0.000275,7]
[400578940,1767731442507,-261.58446,0.000275,7]
[400578942,1767731442518,-151.0,0.000275,7]
[400578944,1767731442532,-151.0,0.000275,7]
[400578946,1767731442546,-151.0,0.000275,7]
[400578948,1767731442555,-151.0,0.000275,7]
[400578950,1767731442567,-151.0,0.000275,7]
[400578952,1767731442576,-151.0,0.000275,7]
[400578954,1767731442585,-151.0,0.000275,7]
[400578956,1767731442594,-151.0,0.000275,7]
[400578958,1767731442603,-151.0,0.000275,7]
[400578960,1767731442612,-151.0,0.000275,7]
[400578962,1767731442621,-151.0,0.00027522,7]
[400578964,1767731442631,-151.0,0.00027522,7]
[400578966,1767731442640,-151.0,0.00027522,7]
[400578968,1767731442650,-151.0,0.00027522,7]
[400578970,1767731442660,-163.660305,0.00027522,7]
[400578972,1767731442669,-163.660305,0.00027522,7]
[400578974,1767731442678,-163.660305,0.00027522,7]
[400578976,1767731442688,-163.660305,0.00027522,7]
[400578978,1767731442697,-151.0,0.00027522,7]
[400578980,1767731442707,-151.0,0.00027522,7]
[400578982,1767731442715,-151.0,0.00027522,7]
[400578984,1767731442724,-151.0,0.00027522,7]
[400578986,1767731442734,-151.0,0.00027522,7]
[400578988,1767731442743,-151.0,0.00027522,7]
[400578990,1767731442752,-151.0,0.00027522,7]
[400578993,1767731442761,-151.0,0.00027522,7]
[400578996,1767731442771,-2440.08,0.000276,7]
[400578999,1767731442779,-227.8,0.000276,7]
[400579003,1767731442788,-192.03,0.000276,7]
[400579005,1767731442797,-507.0,0.00027671,14]
[400579007,1767731442807,-11232.65,0.000277,2]
[400579009,1767731442816,-1000.0,0.00027777,5]
[400579011,1767731442824,-200.652503,0.00027943,7]
[400579013,1767731442834,-151.0,0.00027943,7]
[400579015,1767731442843,-200.652503,0.00027943,7]
[400579017,1767731442852,-256.917806,0.00027943,7]
[400579019,1767731442862,-200.652503,0.00027943,7]
[400579021,1767731442870,-200.652503,0.00027943,7]
[400579023,1767731442879,-151.0,0.00027943,7]
[400579025,1767731442888,-151.0,0.00027943,7]
[400579027,1767731442897,-151.0,0.00027943,7]
[400579029,1767731442906,-151.0,0.00027943,7]
[400579031,1767731442915,-151.0,0.00027943,7]
[400579033,1767731442924,-151.0,0.00027943,7]
[400579035,1767731442934,-151.0,0.00027943,7]
[400579037,1767731442943,-151.0,0.00027943,7]
[400579039,1767731442952,-151.0,0.00027943,7]
[400579041,1767731442961,-507.0,0.00027945,14]
[400579043,1767731442970,-250.0,0.00027945,5]
[400579045,1767731442979,-250.0,0.00027945,5]
[400579047,1767731442988,-15316.1684334,0.00028,2]
[400579049,1767731442997,-519.93395126,0.00028,2]
[400579051,1767731443007,-1019.0,0.00028,2]
[400579053,1767731443015,-1835.27451619,0.0002803,26]
[400579054,1767731443024,-507.0,0.00028219,14]
[400579055,1767731443034,-2000.0,0.00028406,7]
[400579056,1767731443043,-507.0,0.00028493,14]
[400579057,1767731443052,-350.0,0.00028493,5]
[400579058,1767731443061,-350.0,0.00028493,5]
[400579059,1767731443071,-508.0,0.00028494,2]
[400579060,1767731443080,-500.0,0.00028494,2]
[400579061,1767731443089,-80386.29981639,0.000285,7]
[400579062,1767731443098,-508.0,0.00028631,2]
[400579063,1767731443107,-500.0,0.00028631,2]
[400579064,1767731443116,-9931.15793158,0.00028662,2]
[400579065,1767731443125,-26867.53519307,0.0002876,2]
[400579066,1767731443134,-28358.47353222,0.0002876,20]
[400579067,1767731443143,-4000.0,0.0002876,5]
[400579068,1767731443152,-19132.26998272,0.0002876,2]
[400579070,1767731443162,-1749.78,0.00028767,4]
[400579071,1767731443171,-507.0,0.00028767,14]
[400579073,1767731443179,-507.0,0.00028767,14]
[400579075,1767731443189,-508.0,0.00028768,2]
[400579077,1767731443198,-500.0,0.00028768,2]
[400579079,1767731443207,-1000.0,0.00028798,30]
[400579081,1767731443216,-1000.0,0.00028798,30]
[400579083,1767731443226,-1000.0,0.00028798,30]
[400579085,1767731443235,-715.0,0.00028798,30]
[400579087,1767731443244,-172.37105898,0.000288,7]
[400579089,1767731443253,-508.0,0.00028905,2]
[400579091,1767731443263,-500.0,0.00028905,2]
[400579094,1767731443272,-155.4754909,0.00028905,2]
[400579095,1767731443281,-2000.0,0.00028991,7]
[400579097,1767731443291,-890.13787622,0.00029,2]
[400579099,1767731443299,-2261.68,0.00029,14]
[400579101,1767731443309,-1019.0,0.00029,2]
[400579104,1767731443318,-2000.0,0.00029,7]
[400579106,1767731443327,-2000.0,0.00029041,10]
[400579108,1767731443336,-450.0,0.00029041,5]
[400579110,1767731443346,-450.0,0.00029041,5]
[400579111,1767731443355,-508.0,0.00029042,2]
[400579114,1767731443365,-200.0,0.00029042,2]
[400579116,1767731443375,-500.0,0.00029042,2]
[400579118,1767731443383,-508.0,0.00029179,2]
[400579120,1767731443393,-500.0,0.00029179,2]
[400579123,1767731443403,-513.61476882,0.00029201,2]
[400579125,1767731443413,-628.0,0.00029222,2]
[400579127,1767731443422,-1365.0,0.00029222,2]
[400579129,1767731443431,-2145.0,0.00029222,2]
[400579131,1767731443440,-417.0,0.00029222,2]